Cogmind - Beta 14 @@@ ROGUE MODE // 2024.10.20 @ 19:20:02 Player: APerTAS Result: Destroyed by S-10 Pest with Light Assault Rifle Performance ------------- Evolutions (0) 0 Regions Visited (1) 200 Robots Destroyed (4) 20 Value Destroyed (66) 66 Prototype IDs (0) 0 Alien Tech Used (0) 0 Bonus (0) 0 TOTAL SCORE: 286 Bonus ------- None Cogmind --------- Core Integrity 0/250 Matter 194/300 Energy 119/125 System Corruption 40% Temperature Cool (6) Movement Walking (120) Location -10/Materials Parts ------- > --- POWER (1) -------- Light Ion Engine > --- PROPULSION (2) --- Aluminum Leg Aluminum Leg > --- UTILITY (2) ------ (None) > --- WEAPON (2) ------- EM Pulse Gun Grenade Launcher (fused) > --- INVENTORY (5) ---- (None) Peak State ------------ > --- POWER ------------ Ion Engine > --- PROPULSION ------- Light Treads Light Treads > --- UTILITY ---------- Small Storage Unit > --- WEAPON ----------- EM Pulse Gun Assault Rifle > --- INVENTORY -------- Light Ion Engine Aluminum Leg Aluminum Leg EM Pulse Gun [Rating: 6] Favorites ----------- Power Ion Engine Engine Ion Engine Propulsion Light Treads Treads Light Treads Leg Aluminum Leg Utility Small Storage Unit Storage Small Storage Unit Weapon EM Pulse Gun Energy Gun EM Pulse Gun Ballistic Gun Assault Rifle Launcher Grenade Launcher Build | -11 -10 ------- Run | Yrd Mat Slots Evolved . | . . Power . | . . Propulsion . | . . Utility . | . . Weapon . | . . Parts Attached 11 | 10 1 Power 2 | 2 . Engine 2 | 2 . Core . | . . Reactor . | . . Propulsion 4 | 4 . Treads 2 | 2 . Leg 2 | 2 . Wheel . | . . Hover . | . . Flight . | . . Utility 1 | 1 . Device . | . . Storage 1 | 1 . Processor . | . . Hackware . | . . Protection . | . . Artifact . | . . Weapon 4 | 3 1 Energy Gun 2 | 2 . Energy Cannon . | . . Ballistic Gun 1 | 1 . Ballistic Cannon . | . . Launcher 1 | . 1 Special Weapon . | . . Impact Weapon . | . . Slashing Weapon . | . . Piercing Weapon . | . . Special Melee Weapon . | . . Unidentified Prototypes . | . . Parts Lost . | . . Power . | . . Propulsion . | . . Utility . | . . Weapon . | . . Highest Loss Streak . | . . To Critical Strikes . | . . Average Slot Usage (%) 67 | . 67 Engine 14 | . 14 Leg 28 | . 28 Energy Gun 14 | . 14 Launcher 10 | . 10 Peak Build Rating 6 | 6 5 Average Rating 4 | 4 4 On Entrance 2 | . 4 Naked Turns . | . . Heaviest Build 14 | 14 8 Greatest Support 40 | 40 20 Greatest Overweight (x) . | . . Average Overweight (x) . | . . Largest Inventory Capacity 8 | 8 5 Average Capacity 6 | 6 5 Most Carried 4 | 4 . Average Carried 2 | 3 . Final Capacity 5 | 5 5 Final Carried . | . . Class Distribution -------------------- 100% | Mutant Dominant Class ---------------- Mutant | -10/Materials Resources | -11 -10 ----------- Run | Yrd Mat Matter Collected 254 | 254 . Remotely . | . . Salvage Created 82 | . 82 Parts 5 | . 5 Haulers Intercepted 1 | . 1 Recyclers Shooed . | . . Parts Field Recycled . | . . Retrieved Matter . | . . Parts Self-Destructed . | . . Prevented . | . . Kills | -11 -10 ------- Run | Yrd Mat Combat Hostiles Destroyed 3 | . 3 Guns 2 | . 2 AOE 1 | . 1 Classes Destroyed 3 | . 3 Hauler 1 | . 1 Swarmer 2 | . 2 Grunt 1 | . 1 Best Kill Streak 4 | . 4 Combat Bots Only 3 | . 3 Max Kills in Single Turn 1 | . 1 Gunslinging . | . . Exploded 1 | . 1 Melee . | . . Uniques/NPCs Destroyed . | . . Combat | -11 -10 -------- Run | Yrd Mat Hostile Shots Fired 14 | . 14 Missed 3 | . 3 Damage Taken 410 | 300 110 Core 255 | 206 49 Absorbed by Shields . | . . Core Remaining (%) 17 | 17 . Volleys Fired 8 | . 8 Largest 2 | . 2 Hottest 70 | . 70 Shots Fired 9 | . 9 Gun 6 | . 6 Cannon . | . . Launcher 3 | . 3 Special . | . . Kinetic . | . . Thermal . | . . Explosive 3 | . 3 Electromagnetic 6 | . 6 Robot Hit Streak 2 | . 2 Robot Miss Streak 2 | . 2 Penetration Max . | . . Secondary Targets . | . . Shots Hit Robots 4 | . 4 Core Hits 6 | . 6 Critical Kills . | . . Critical Parts Destroyed . | . . Critical Strikes . | . . Melee Attacks . | . . Impact . | . . Slashing . | . . Piercing . | . . Sneak Attacks . | . . Combat Hostiles . | . . Follow-up Attacks . | . . Damage Inflicted 320 | 115 205 Guns 36 | . 36 Cannons . | . . Explosions 169 | . 169 Melee . | . . Ramming 115 | 115 . Kinetic . | . . Thermal . | . . Explosive 169 | . 169 Electromagnetic 36 | . 36 Impact . | . . Slashing . | . . Piercing . | . . Highest Corruption 40 | 40 40 Average Corruption 29 | 24 40 Corruption Purged . | . . Corruption Blocked . | . . Effects 14 | 7 7 Message Errors 4 | 2 2 Matter Fused 2 | 1 1 Energy Discharges 2 | 2 . Parts Fused 1 | . 1 Data Loss (minor) 1 | 1 . Data Loss (major) 1 | 1 . Misdirections 1 | . 1 Weapon Failures 2 | . 2 Overload Shots . | . . Overflow Damage . | . . Projectiles . | . . Explosions . | . . Melee . | . . Knockbacks . | . . Impact . | . . Kinetic . | . . Secondary . | . . Self-Inflicted Damage 115 | 115 . Shots . | . . Rammed . | . . Targets Rammed . | . . Kicked . | . . Crushed . | . . Highest Temperature 33 | . 33 Average Temperature 19 | . 19 Received Heat Transfer 24 | . 24 Siege Activations . | . . Robots Corrupted . | . . Combat Hostiles . | . . Parts Fried . | . . Impact Corruptions . | . . Robots Melted . | . . Combat Hostiles . | . . Parts Melted . | . . Heat Transferred . | . . Parts Sabotaged . | . . Parts Stolen . | . . Parts Stripped . | . . Power Chain Reactions . | . . Alert | -11 -10 ------- Run | Yrd Mat Peak Influence 118 | . 118 Initial . | . . Average 8 | . 34 Maximum Alert Level . | . . Low Security (%) 100 | 100 100 Level 1 . | . . Level 2 . | . . Level 3 . | . . Level 4 . | . . Level 5 . | . . High Security . | . . Max Security . | . . Squads Dispatched 1 | . 1 Investigation . | . . Extermination . | . . Reinforcement 1 | . 1 Assault . | . . Garrison . | . . Intercept . | . . Searches Triggered . | . . Construction Impeded . | . . Haulers Reinforced . | . . Active Scanning Responses . | . . Cargo Convoy Interrupts . | . . Stealth | -11 -10 --------- Run | Yrd Mat Distress Signals . | . . Communications Jammed . | . . Distress Signals . | . . Times Spotted 7 | . 7 Peak Tracking Total 6 | . 6 Tactical Retreats . | . . Traps | -11 -10 ------- Run | Yrd Mat Traps Triggered . | . . Indirectly . | . . Trap Hack Attempts . | . . Triggered . | . . Disarmed . | . . Reprogrammed . | . . Reused . | . . Traps Extracted . | . . Installed . | . . Triggered . | . . Machines | -11 -10 ---------- Run | Yrd Mat Machines Disabled 1 | . 1 Max in Single Turn 1 | . 1 Machines Repaired . | . . Machines Dismantled . | . . Machines Sabotaged . | . . Overloaded Fab Kills . | . . Hacking | -11 -10 --------- Run | Yrd Mat Machines Accessed . | . . Terminals . | . . Fabricators . | . . Repair Stations . | . . Recycling Units . | . . Scanalyzers . | . . Garrison Access . | . . Total Hacks . | . . Successful . | . . Failed . | . . Catastrophic . | . . Database Lockouts . | . . Manual . | . . Terminals . | . . Fabricators . | . . Repair Stations . | . . Recycling Units . | . . Scanalyzers . | . . Garrison Access . | . . Terminal Hacks . | . . Fabricator Hacks . | . . Repair Station Hacks . | . . Recycling Unit Hacks . | . . Scanalyzer . | . . Garrison Access Hacks . | . . Unauthorized Hacks . | . . Terminals . | . . Fabricators . | . . Repair Stations . | . . Recycling Units . | . . Scanalyzers . | . . Garrison Access . | . . Data Cores Recovered . | . . Used . | . . Hacking Detections . | . . Full Trace Events . | . . Feedback Events . | . . Feedback Blocked . | . . Robot Schematics Acquired . | . . Robots Built . | . . Authchips . | . . Time . | . . Total Robot Build Rating . | . . Part Schematics Acquired . | . . Parts Built . | . . Authchips . | . . Time . | . . Total Part Build Rating . | . . Parts Repaired . | . . Time . | . . Parts Recycled . | . . Recycled Matter . | . . Retrieved Matter . | . . Retrieved Components . | . . Parts Scanalyzed . | . . Part Schematics Acquired . | . . Parts Damaged . | . . Bothacking | -11 -10 ------------ Run | Yrd Mat Used RIF Installer . | . . Robots Hacked . | . . Non-combat . | . . Combat . | . . Robot Hacks Applied . | . . Relay Couplers Released . | . . Fabnet Peak Effective % . | . . Robots Rewired . | . . Allies Hacked . | . . Hacks Repelled . | . . Allies | -11 -10 -------- Run | Yrd Mat Total Allies . | . . Largest Group . | . . Highest-Rated Group . | . . Highest-Rated Ally . | . . Total Orders . | . . Ally Attacks . | . . Total Damage . | . . Kills . | . . Allies Corrupted . | . . Allies Melted . | . . Intel | -11 -10 ------- Run | Yrd Mat Robot Analysis Total . | . . Derelict Logs Recovered . | . . Drone Launches . | . . Drone Recoveries . | . . Exploration | -11 -10 ------------- Run | Yrd Mat Turns Passed 271 | 208 63 Spaces Moved 97 | 61 36 Core 17 | 17 . Treads 31 | 31 . Legs 49 | 13 36 Wheels . | . . Hover . | . . Flight . | . . Fastest Speed 50 | 50 120 Average Speed 120 | 120 120 Slowest Speed 160 | 160 120 Overloaded Moves . | . . Propulsion Burnouts . | . . Robots Hopped . | . . Cave-ins Triggered . | . . Exploration Rate (%) 8 | 8 9 Regions Visited 1 Branch Regions . Pre-discovered Areas . | . . Known Exits Taken . | . . Unknown Exits Taken 1 | 1 . Scrap Searched . | . . Spaces Dug . | . . Terrain Destroyed 25 | . 25 Melee . | . . Projectile . | . . AOE 25 | . 25 Terrain Rammed 50 | 50 . Walls Destroyed . | . . Machines Disabled . | . . Actions | -11 -10 --------- Run | Yrd Mat Total 169 | 124 45 Wait . | . . Move 96 | 60 36 Hop . | . . Pick Up 4 | 4 . Fast Attach 7 | 6 1 Attach 4 | 4 . Detach . | . . Swap . | . . Drop . | . . Fire 8 | . 8 Melee . | . . Ram 50 | 50 . Kick . | . . Crush . | . . Escape Stasis . | . . Rewire . | . . Trap . | . . Miscellaneous . | . . Route ------- -11/Scrapyard -10/Materials History --------- Turn | Location | Event 6 | -11/Scrapyard | Discovered new exit (range 16) 92 | -11/Scrapyard | System corruption reached 10% 127 | -11/Scrapyard | Core integrity fell below 50% 152 | -11/Scrapyard | System corruption reached 30% 179 | -11/Scrapyard | Core integrity fell below 20% 183 | -11/Scrapyard | Released all parts (6) 209 | -11/Scrapyard | Entered Materials 272 | -10/Materials | Destroyed by S-10 Pest with Light Assault Rifle Last Messages --------------- Terminate on contact. 00220_ RAB=NZD> ZNJKYBST EO% >W3Y>8K|:FG 00220_ O-16 Technician: "IFF HANDSHAKE FAILED. SECURING TERMINAL." 00229_ Acquired Grenade Launcher. 00231_ ALERT: Hostiles spotted, dispatching reinforcements to Terminal M007. 00236_ YIGOIV>FGQA>VSCDR|,:K6LFVKZVFX5JTMS&%H>P 00249_ A-02 Transporter destroyed. 00251_ System corrupted: Grenade Launcher fused. 00252_ Terminal disabled. 00255_ G-34 Mercenary destroyed. 00263_ R-06 Scavenger collects Sml. Laser. 00265_ S-10 Pest destroyed. 00266_ System corrupted: Matter fused (-10). 00267_ System corrupted: EM Pulse Gun failed to cycle. 00268_ R-06 Scavenger collects Welding Torch. 00269_ System corrupted: EM Pulse Gun failed to cycle. 00271_ S-10 Pest destroyed. 00271_ K-01 Serf collects debris. Map ----- +----------------------------------------------------+ | ?????????????????????????????????????????? | | ?????????????????????????????????????????? | | ?????????????????????????????????????????? | | ?????????????????????????????????????????? | | ?????????????????????????????????????????? | | ?????????????????????????????????????????? | | ?????????????????????????????????????????? | | ????????????????????????????????#######??# | | ????????????????????????????##### """ # | | ????????????????????????????# # """"" # | | ????????????????????????????# # """"" # | | ????????????????????????????# # """"" # | | ????????????????????????????# + """ # | | ????????????????????????????# # # | | ????????????????????????????# # # | | ????????????????????????????# # # | | ????????????????????????????# # # | | ????????????????????????????# ########## | | ????????????????????????????# #????????? | | ????????????????????????????# #????????? | | ????????????????????????????# #????????? | | ????????????????????????????# #????????? | | ??????????????????????????### #????????? | | ?????????????####+######### ##???????? | | ?????????? oa k #???????? | | ?????????? g @ #???????? | | ??????????%* * % #???????? | | ?????????? % ######## g #???????? | | ??????????? = ????????? rk #??????? | | ??????????? ?? ??????????? #??????? | | ??????????????????????????## | #??????? | | ??????????????????????????? %! #??????? | | ??????????????????????????? !! #??????? | | ??????????????????????????? #??????? | | ??????????????????????????? # ###??????? | | ?????????????????????????? ? #????????? | | ??????????????????????????? ? #????????? | | ???????????????????????????#? #????????? | | ????????????????????????????? #????????? | | ????????????????????????????? ?????????? | | ?????????????????????????????????????????? | | ?????????????????????????????????????????? | | ?????????????????????????????????????????? | | ?????????????????????????????????????????? | | ?????????????????????????????????????????? | | ?????????????????????????????????????????? | | ?????????????????????????????????????????? | | ?????????????????????????????????????????? | | ?????????????????????????????????????????? | | ?????????????????????????????????????????? | +----------------------------------------------------+ Best States ------------- Heat Dissipation 25 Energy Generation 10 Energy Capacity 250 Matter Stores 244 Matter Capacity 300 Sight Range 16 Terrain Scan Density 10 Evasion (%) 55 Recoil Reduction 2 Item Schematics ----------------- None Robot Schematics ------------------ None Fabricated ------------ Nothing Alien Tech Used ----------------- None Achievements -------------- None Challenges ------------ None Game ------ Seed MachineLinearTelecube Manual? 0 Play Time 00:01:33 Cumulative 39.4 hours Start 2024.10.20 @ 19:18:56 End 2024.10.20 @ 19:20:02 Sessions 1 Manual Loads 0 Difficulty Rogue Special Mode None Game No. 162 Rogue 162 Adventurer 0 Explorer 0 Win Type - Total 0 Types 0/0/0/0/0/0/0/0/0 Lore% 49 Gallery% 34 Achievement% 34 Wizard Run 0 Options --------- Layout 0 ASCII 0 Keyboard 0 Movement Arrows Keybinds 0 Fullscreen 1 Font 24/Terminus Map View 64x52 Zoom Use 0% Tactical HUD 1 Map Filters NONE Filters NONE Steam 1 RUN: f943722d-08e2-4afc-8bef-d21e3892c754